Cogmind - Beta 17 @@@ ROGUE MODE // 2026.06.29 @ 19:35:01 Player: Petvaria Result: Destroyed by ND-668(r) with Power Sword Performance ------------- Evolutions (2) 1000 Regions Visited (6) 1200 Robots Destroyed (115) 575 Value Destroyed (2899) 2899 Prototype IDs (22) 440 Alien Tech Used (0) 0 Bonus (11684) 11684 TOTAL SCORE: 17798 Bonus ------- High Alert Combat Kills 419 Follower Combat Kills 576 Prayed to X0-1V1 5000 Major X0-1V1 Interference 5500 Registered with UFD 300 Friendly Fire -111 Cogmind --------- Core Integrity 0/800 Matter 300/300 Energy 30/100 System Corruption 4% Temperature Cool (-666) Movement Core (50) Location -8/Scraptown Parts ------- > --- POWER (1) -------- (None) > --- PROPULSION (4) --- (None) > --- UTILITY (4) ------ (None) > --- WEAPON (3) ------- (None) > --- INVENTORY (5) ---- Weapon Cycler Wyrmscale Phase Cannon Improved Datajack Ripteeth Peak State ------------ > --- POWER ------------ Fission Core > --- PROPULSION ------- Armored Treads Advanced Treads Advanced Treads Medium Treads > --- UTILITY ---------- Advanced Heat Sink Huge Storage Unit Wyrmscale X0-1V1's Piety Tracker > --- WEAPON ----------- Enhanced Autogun Gauss Rifle Coil Gun > --- INVENTORY -------- Heavy Ion Engine Light Treads Light Treads Advanced Treads Advanced Treads Advanced Treads Advanced Treads Medium Treads Weapon Cycler Core Shielding Heavy Armor Plating A0-MCA's Component Scanner High-powered Tractor Beam Advanced Beam Rifle Advanced Beam Rifle Phase Cannon Heavy Assault Rifle Heavy Assault Rifle Heavy Assault Rifle Gauss Cannon Advanced EMP Blaster Improved Datajack CPS Tube Katana [Rating: 71] Favorites ----------- Power Cooled Ion Engine Engine Cooled Ion Engine Power Core Fission Core Propulsion Advanced Treads Treads Advanced Treads Leg Light Armored Exoskeleton Wheel Armored Wheel Utility Huge Storage Unit Device X0-1V1's Piety Tracker Storage Huge Storage Unit Processor Signal Interpreter Hackware Hacking Suite Protection Heavy Armor Plating Weapon Heavy Assault Rifle Energy Gun Advanced Beam Rifle Energy Cannon Phase Cannon Ballistic Gun Heavy Assault Rifle Launcher Advanced EMP Blaster Special Weapon CPS Tube Impact Weapon Flail Slashing Weapon Katana Special Melee Weapon Improved Datajack Build | -11 -10 -9 -8 -8 -8 -8 ------- Run | Yrd Mat Mat Mat Sto Rec Scr Slots Evolved 4 | . . 2 2 . . . Power . | . . . . . . . Propulsion 3 | . . 2 1 . . . Utility . | . . . . . . . Weapon 1 | . . . 1 . . . Parts Attached 101 | 7 7 31 3 27 2 24 Power 7 | 1 . 3 . 1 . 2 Engine 6 | 1 . 3 . 1 . 1 Core 1 | . . . . . . 1 Reactor . | . . . . . . . Propulsion 34 | 2 . 11 1 14 . 6 Treads 32 | 2 . 10 1 14 . 5 Leg 1 | . . 1 . . . . Wheel 1 | . . . . . . 1 Hover . | . . . . . . . Flight . | . . . . . . . Utility 27 | 2 5 7 1 6 . 6 Device 11 | 1 2 2 . 2 . 4 Storage 2 | 1 1 . . . . . Processor 2 | . . 1 1 . . . Hackware 1 | . . . . 1 . . Protection 11 | . 2 4 . 3 . 2 Artifact . | . . . . . . . Weapon 33 | 2 2 10 1 6 2 10 Energy Gun 4 | . . . . 3 . 1 Energy Cannon 2 | . . . . . . 2 Ballistic Gun 22 | 2 2 8 1 3 2 4 Ballistic Cannon . | . . . . . . . Launcher 1 | . . 1 . . . . Special Weapon 1 | . . . . . . 1 Impact Weapon . | . . . . . . . Slashing Weapon 2 | . . 1 . . . 1 Piercing Weapon . | . . . . . . . Special Melee Weapon 1 | . . . . . . 1 Unidentified Prototypes 10 | . 1 3 . 5 . 1 Corrupted Parts 2 | . . 1 . . . 1 System Corruption 10 | . . 4 . . . 6 Parts Lost 22 | . . 7 . 4 . 11 Power 2 | . . 1 . 1 . . Propulsion 7 | . . 1 . . . 6 Utility 9 | . . 3 . 3 . 3 Weapon 4 | . . 2 . . . 2 Highest Loss Streak 11 | . . 2 . 2 . 11 To Critical Strikes 2 | . . . . . . 2 Average Backups 21 | 4 12 22 22 24 24 23 Power 1 | . 1 1 1 1 1 . Propulsion 5 | 2 1 5 5 5 6 6 Utility 4 | . 3 5 5 3 4 4 Weapon 9 | . 4 10 10 12 12 9 Tool/Special . | . . . . . . . Unused Backups 28 | . 5 4 . 8 2 9 Power 3 | . . 2 . . . 1 Propulsion 9 | . 4 . . 4 . 1 Utility 3 | . . . . . 1 2 Weapon 11 | . 1 2 . 3 1 4 Tool/Special 2 | . . . . 1 . 1 Average Slot Usage (%) 94 | . 99 94 89 96 88 92 Engine 6 | . 13 9 8 7 8 2 Core 2 | . . . . . . 5 Treads 30 | . 24 29 33 32 33 31 Device 10 | . 8 9 8 7 8 12 Storage 9 | . 13 9 8 8 8 7 Protection 9 | . 8 14 8 14 8 6 Energy Cannon 1 | . . . . . . 2 Ballistic Gun 22 | . 27 21 23 23 22 20 Peak Build Rating 71 | 7 24 37 37 51 52 71 Average Rating 40 | 4 13 31 36 38 50 53 On Entrance 27 | . 7 24 34 37 51 42 Avg Prop Armor Cover (%) 17 | . . . . . . 17 Naked Turns 15 | . . . . . . 15 Heaviest Build 122 | 15 96 110 113 113 113 122 Greatest Support 92 | 40 40 60 80 88 88 92 Greatest Overweight (x) 9 | . 4 1 1 1 1 9 Average Overweight (x) 1 | . 1 1 1 1 1 1 Largest Inventory Capacity 25 | 8 25 25 25 25 25 25 Average Capacity 23 | 7 18 25 25 25 25 24 Most Carried 25 | 7 19 25 24 25 25 25 Average Carried 22 | 4 12 24 22 24 24 23 Final Capacity 25 | 8 25 25 25 25 25 5 Final Carried 25 | 7 18 25 22 25 25 5 Class Distribution -------------------- 46% | Commander-Tank 17% | Mutant 12% | Scavenger-Mutant 7% | Scavenger-Tank 6% | Tank 6% | Commander-Gunner 3% | Commander-Mutant Dominant Class ---------------- Mutant | -10/Materials Scavenger-Mutant | -9/Materials Scavenger-Mutant | -8/Materials Commander-Tank | -8/Storage Commander-Tank | -8/Recycling Commander-Tank | -8/Scraptown Resources | -11 -10 -9 -8 -8 -8 -8 ----------- Run | Yrd Mat Mat Mat Sto Rec Scr Matter Collected 4505 | 254 438 1692 . 863 335 923 Remotely 490 | . . 233 . . . 257 Salvage Created 4783 | 75 401 2425 . 1158 597 127 Parts 264 | 3 31 158 . 48 22 2 Haulers Intercepted 9 | . 1 4 . 4 . . Recyclers Shooed 10 | . 1 3 . 2 4 . Parts Field Recycled . | . . . . . . . Retrieved Matter . | . . . . . . . Parts Self-Destructed . | . . . . . . . Prevented . | . . . . . . . Parts Restored . | . . . . . . . Kills | -11 -10 -9 -8 -8 -8 -8 ------- Run | Yrd Mat Mat Mat Sto Rec Scr Combat Hostiles Destroyed 78 | . 10 50 . 14 2 2 Melee 1 | . . 1 . . . . Guns 65 | . 9 39 . 14 2 1 Cannons 1 | . . . . . . 1 AOE 9 | . . 9 . . . . Classes Destroyed 14 | 2 6 5 . . . 1 Worker 3 | . 1 2 . . . . Builder 2 | . . 2 . . . . Tunneler 1 | 1 . . . . . . Hauler 9 | . 1 4 . 4 . . Recycler 13 | 1 . 3 . 3 6 . Operator 2 | . 1 1 . . . . Watcher 5 | . 1 3 . 1 . . Swarmer 18 | . 3 15 . . . . Grunt 35 | . 7 21 . 5 2 . Brawler 1 | . . 1 . . . . Duelist 1 | . . 1 . . . . Sentry 21 | . . 10 . 9 2 . Hunter 2 | . . 2 . . . . Bolteater 1 | . . . . . . 1 Savage 1 | . . . . . . 1 Best Kill Streak 12 | 2 3 12 . 3 3 1 Combat Bots Only 8 | . 3 8 . 3 1 1 Max Kills in Single Turn 4 | 1 2 4 . 1 2 1 Gunslinging 1 | . 1 1 . . . . Exploded 3 | . . 3 . . . . Melee 1 | . . 1 . . . . Uniques/NPCs Destroyed 1 | . . . . . . 1 Triborg (-8/Scraptown) Combat | -11 -10 -9 -8 -8 -8 -8 -------- Run | Yrd Mat Mat Mat Sto Rec Scr Hostile Shots Fired 737 | . 41 260 . 61 2 373 Missed 192 | . 7 81 . 6 . 98 Hits 545 | . 34 179 . 55 2 275 Melee 99 | . . . . . . 99 Projectile 446 | . 34 179 . 55 2 176 Critical Strikes 21 | . . 5 . 1 . 15 Actively Blocked 1 | . . . . . . 1 Damage Taken 7551 | . 384 2049 . 912 86 4120 Core 1021 | . 52 164 . 80 . 725 Absorbed by Shields 13 | . . 13 . . . . Redirected to Shielding 55 | . . 20 . 10 . 25 Regen/Repaired (Parts) 2086 | . 52 . . 115 . 1919 Core Remaining (%) 86 | 100 85 74 . . . . Volleys Fired 258 | 3 48 115 . 56 16 20 Largest 3 | 2 2 3 . 3 3 3 Hottest 85 | 40 46 69 . 71 71 85 Shots Fired 607 | 6 96 258 . 164 47 36 Gun 590 | 6 96 248 . 164 47 29 Cannon 6 | . . . . . . 6 Launcher 10 | . . 10 . . . . Special 1 | . . . . . . 1 Kinetic 590 | 6 96 248 . 164 47 29 Thermal 6 | . . . . . . 6 Explosive . | . . . . . . . Electromagnetic 10 | . . 10 . . . . Robot Hit Streak 36 | 2 9 18 . 36 10 10 Robot Miss Streak 5 | 1 2 5 . 2 2 2 Penetration Max . | . . . . . . . Secondary Targets 9 | . 1 8 . . . . Max Gunslinging Chain 1 | . 1 1 . . . . Shots Hit Robots 426 | 4 66 170 . 128 31 27 Core Hits 183 | 3 21 90 . 45 16 8 Critical Kills . | . . . . . . . Critical Parts Destroyed 2 | . . 1 . . . 1 Critical Strikes 2 | . . 1 . . . 1 Destroy 2 | . . 1 . . . 1 Melee Attacks 12 | . . 3 . 5 . 4 Impact 1 | . . 1 . . . . Slashing 10 | . . 2 . 5 . 3 Piercing . | . . . . . . . Sneak Attacks 1 | . . . . . . 1 Combat Hostiles . | . . . . . . . Follow-up Attacks . | . . . . . . . Damage Inflicted 8559 | 61 955 3876 . 2134 856 677 Guns 6544 | 59 942 2551 . 2012 552 428 Cannons 338 | . . . . 95 . 243 Explosions 1546 | . . 1272 . . 274 . Melee 34 | . . 31 . . . 3 Ramming 97 | 2 13 22 . 27 30 3 Kinetic 6706 | 59 942 2551 . 2012 552 590 Thermal 339 | . . 163 . 95 . 81 Explosive 274 | . . . . . 274 . Electromagnetic 1109 | . . 1109 . . . . Impact 31 | . . 31 . . . . Slashing 3 | . . . . . . 3 Piercing . | . . . . . . . Highest Corruption 17 | . . 6 . 6 17 6 Average Corruption 7 | . . 5 . 4 10 3 Corruption Purged . | . . . . . . . Corruption Blocked . | . . . . . . . Effects 93 | . . 48 . 7 36 2 Message Errors 27 | . . 14 . 3 10 . Matter Fused 15 | . . 8 . . 7 . Heat Flow Errors 13 | . . 7 . . 4 2 Energy Discharges 9 | . . 5 . . 4 . Parts Rejected 1 | . . . . 1 . . Data Loss (minor) 11 | . . 8 . 1 2 . Data Loss (major) 6 | . . 1 . . 5 . Misfires 6 | . . 2 . 1 3 . Alerts 3 | . . 1 . 1 1 . Weapon Failures 2 | . . 2 . . . . Overload Shots . | . . . . . . . Overflow Damage 28 | . . 13 . . . 15 Projectiles 15 | . . . . . . 15 Explosions 13 | . . 13 . . . . Melee . | . . . . . . . Knockbacks 1 | . . 1 . . . . Impact 1 | . . 1 . . . . Kinetic . | . . . . . . . Secondary . | . . . . . . . Self-Inflicted Damage 58 | . . . . . 58 . Shots 1 | . . . . . 1 . Rammed 19 | 1 3 4 . 7 3 1 Targets Rammed 20 | 1 3 4 . 7 4 1 Kicked . | . . . . . . . Crushed 1 | . . . . . 1 . Highest Temperature 279 | . 8 270 . 88 279 246 Average Temperature 54 | . 3 62 . 20 71 76 Received Heat Transfer 2466 | . 174 699 . 360 9 1224 Effects 2 | . . . . . . 2 Energy Bleed 1 | . . . . . . 1 Interference 1 | . . . . . . 1 Siege Activations . | . . . . . . . Martial Activations . | . . . . . . . Shielding Activations . | . . . . . . . Robots Disrupted . | . . . . . . . Combat Hostiles . | . . . . . . . Robots Corrupted 1 | . . 1 . . . . Combat Hostiles 1 | . . 1 . . . . Parts Fried 3 | . . 3 . . . . Impact Corruptions . | . . . . . . . Robots Melted . | . . . . . . . Combat Hostiles . | . . . . . . . Parts Melted 1 | . . 1 . . . . Heat Transferred 373 | . . 224 . 50 . 99 Parts Sabotaged . | . . . . . . . Parts Stolen 7 | . . . . . . 7 Parts Stripped . | . . . . . . . Power Chain Reactions 4 | . . 4 . . . . Alert | -11 -10 -9 -8 -8 -8 -8 ------- Run | Yrd Mat Mat Mat Sto Rec Scr Maximum Alert Level 3 | . 1 3 2 1 . . Low Security (%) 64 | 100 90 6 . 83 100 . Level 1 14 | . 9 25 . 16 . . Level 2 7 | . . 24 100 . . . Level 3 13 | . . 44 . . . . Level 4 . | . . . . . . . Level 5 . | . . . . . . . High Security . | . . . . . . . Max Security . | . . . . . . . Sterilizations 1 | . . 1 . . . . Peak Influence 1036 | 10 247 1036 437 246 43 . Initial 437 | . . 92 437 180 2 . Average 229 | . 33 618 432 106 10 . Influence Increases 3023 | 10 487 1721 . 574 231 . Destroy 0b10 Robot/C 1620 | . 200 1020 . 320 80 . Destroy 0b10 Robot/NC 175 | 10 20 75 . 40 30 . Destroy Leader 348 | . 64 164 . 120 . . Allied During Kill 83 | . . 3 . 8 72 . Successful Hack 19 | . . 5 . 6 8 . Disable Machine 105 | . . 30 . 45 30 . Destroy Structure 42 | . 3 23 . 5 11 . Lose Combat Pursuer 75 | . . 45 . 30 . . Miscellaneous 556 | . 200 356 . . . . Influence Decreases 3023 | 10 268 904 609 994 232 6 Entered New Map 984 | . . 127 599 247 5 6 Time Decay 1621 | 10 268 607 10 503 223 . Search Patrol Dispatched 100 | . . 100 . . . . Lost Part 110 | . . 70 . 40 . . Lost Ally 20 | . . . . 20 . . Purge Threat 188 | . . . . 184 4 . Squads Dispatched 17 | . 6 9 . 1 1 . Investigation 6 | . 3 2 . . 1 . Extermination . | . . . . . . . Reinforcement 9 | . 3 5 . 1 . . Assault 2 | . . 2 . . . . Garrison . | . . . . . . . Intercept . | . . . . . . . Searches Triggered 1 | . . 1 . . . . Construction Impeded . | . . . . . . . Haulers Reinforced . | . . . . . . . Active Scanning Responses . | . . . . . . . Cargo Convoy Interrupts . | . . . . . . . Stealth | -11 -10 -9 -8 -8 -8 -8 --------- Run | Yrd Mat Mat Mat Sto Rec Scr Distress Signals 13 | . 1 6 . 6 . . Communications Jammed . | . . . . . . . Distress Signals . | . . . . . . . Times Spotted 200 | . 15 92 . 35 3 55 Peak Tracking Total 29 | . 4 9 . 5 1 29 Tactical Retreats 8 | . . 2 . 2 . 4 Traps | -11 -10 -9 -8 -8 -8 -8 ------- Run | Yrd Mat Mat Mat Sto Rec Scr Traps Triggered 4 | . 1 1 . 2 . . Indirectly . | . . . . . . . Trap Hack Attempts . | . . . . . . . Triggered . | . . . . . . . Disarmed . | . . . . . . . Reprogrammed . | . . . . . . . Reused . | . . . . . . . Traps Extracted . | . . . . . . . Installed . | . . . . . . . Triggered . | . . . . . . . Most Traps Carried 1 | . . 1 . . . . Machines | -11 -10 -9 -8 -8 -8 -8 ---------- Run | Yrd Mat Mat Mat Sto Rec Scr Machines Disabled 13 | . . 2 . 3 2 6 Max in Single Turn 2 | . . 1 . 1 2 2 Machines Repaired . | . . . . . . . Machines Dismantled . | . . . . . . . Machines Sabotaged . | . . . . . . . Overloaded Fab Kills . | . . . . . . . Hacking | -11 -10 -9 -8 -8 -8 -8 --------- Run | Yrd Mat Mat Mat Sto Rec Scr Machines Accessed 18 | . 2 4 . 7 5 . Terminals 14 | . 1 2 . 6 5 . Fabricators . | . . . . . . . Repair Stations 2 | . 1 . . 1 . . Recycling Units . | . . . . . . . Scanalyzers 2 | . . 2 . . . . Garrison Access . | . . . . . . . Total Hacks 40 | . 5 7 . 20 8 . Successful 18 | . 3 2 . 9 4 . Failed 21 | . 2 4 . 11 4 . Catastrophic 2 | . 1 . . . 1 . Database Lockouts 1 | . . 1 . . . . Manual 29 | . 3 3 . 15 8 . Terminals 30 | . 2 3 . 17 8 . Fabricators . | . . . . . . . Repair Stations 6 | . 3 . . 3 . . Recycling Units . | . . . . . . . Scanalyzers 4 | . . 4 . . . . Garrison Access . | . . . . . . . Terminal Hacks 5 | . . . . 4 1 . Open Door 1 | . . . . 1 . . Unreport Threat 3 | . . . . 2 1 . Hauler Manifests 1 | . . . . 1 . . Fabricator Hacks . | . . . . . . . Repair Station Hacks 4 | . 2 . . 2 . . Scan Component 2 | . 1 . . 1 . . Repair 2 | . 1 . . 1 . . Recycling Unit Hacks . | . . . . . . . Scanalyzer 1 | . . 1 . . . . Retrieve Study 1 | . . 1 . . . . Garrison Access Hacks . | . . . . . . . Unauthorized Hacks 8 | . 1 1 . 3 3 . Terminals 8 | . 1 1 . 3 3 . Botnet 7 | . . 1 . 3 3 . Operators 1 | . 1 . . . . . Fabricators . | . . . . . . . Repair Stations . | . . . . . . . Recycling Units . | . . . . . . . Scanalyzers . | . . . . . . . Garrison Access . | . . . . . . . Data Cores Recovered . | . . . . . . . Used . | . . . . . . . Hacking Detections 13 | . 1 2 . 6 4 . Full Trace Events . | . . . . . . . Feedback Events . | . . . . . . . Feedback Blocked . | . . . . . . . Robot Schematics Acquired . | . . . . . . . Robots Built . | . . . . . . . Authchips . | . . . . . . . Time . | . . . . . . . Total Robot Build Rating . | . . . . . . . Part Schematics Acquired . | . . . . . . . Parts Built . | . . . . . . . Authchips . | . . . . . . . Time . | . . . . . . . Total Part Build Rating . | . . . . . . . Part Studies Acquired 1 | . . 1 . . . . Parts Repaired 2 | . 1 . . 1 . . Time 52 | . 26 . . 26 . . Parts Recycled . | . . . . . . . Recycled Matter . | . . . . . . . Retrieved Matter . | . . . . . . . Retrieved Components . | . . . . . . . Parts Scanalyzed . | . . . . . . . Part Schematics Acquired . | . . . . . . . Parts Damaged . | . . . . . . . Bothacking | -11 -10 -9 -8 -8 -8 -8 ------------ Run | Yrd Mat Mat Mat Sto Rec Scr Used RIF Installer . | . . . . . . . Robots Hacked 1 | . . . . . . 1 Non-combat . | . . . . . . . Combat 1 | . . . . . . 1 Robot Hacks Applied 1 | . . . . . . 1 parse_system 1 | . . . . . . 1 Relay Couplers Released . | . . . . . . . Fabnet Peak Effective % . | . . . . . . . Robots Rewired . | . . . . . . . Allies Hacked . | . . . . . . . Hacks Repelled . | . . . . . . . Allies | -11 -10 -9 -8 -8 -8 -8 -------- Run | Yrd Mat Mat Mat Sto Rec Scr Total Allies 12 | . . 1 . 10 . 1 Largest Group 10 | . . 1 1 10 10 8 Highest-Rated Group 557 | . . 90 90 173 173 557 Highest-Rated Ally 446 | . . 90 90 90 29 446 Total Orders 6 | . . . . 4 . 2 STAY 2 | . . . . 1 . 1 FOLLOW 2 | . . . . 1 . 1 EXPLORE 2 | . . . . 2 . . Ally Attacks 114 | . . 2 . 28 20 64 Total Damage 3561 | . . 78 . 667 290 2526 Kills 19 | . . 1 . 2 2 14 Allies Corrupted . | . . . . . . . Allies Melted . | . . . . . . . X0-1V1 Amusement Gains 241 | . 5 83 5 30 20 98 Good Acts 40 | . 14 15 . 7 1 3 Bad Acts 39 | . 6 24 . 2 2 5 Intel | -11 -10 -9 -8 -8 -8 -8 ------- Run | Yrd Mat Mat Mat Sto Rec Scr Active Infowar (turns) 397 | 15 382 . . . . . Seismic 397 | 15 382 . . . . . Robot Analysis Total . | . . . . . . . Derelict Logs Recovered . | . . . . . . . Drone Launches 2 | . . . . 2 . . Drone Recoveries 2 | . . . . 2 . . Exploration | -11 -10 -9 -8 -8 -8 -8 ------------- Run | Yrd Mat Mat Mat Sto Rec Scr Turns Passed 10909 | 101 1448 1976 38 1876 1072 4398 Spaces Moved 4097 | 60 473 609 14 630 446 1865 Core 47 | 23 . . . . . 24 Treads 3857 | 37 473 609 14 630 446 1648 Legs . | . . . . . . . Wheels 193 | . . . . . . 193 Hover . | . . . . . . . Flight . | . . . . . . . Fastest Speed 50 | 50 160 240 240 225 225 50 Average Speed 231 | 117 253 240 240 238 225 225 Slowest Speed 480 | 160 480 240 240 240 225 480 Overloaded Moves . | . . . . . . . Propulsion Burnouts . | . . . . . . . Robots Hopped . | . . . . . . . Potential Cave-ins . | . . . . . . . Cave-ins Triggered . | . . . . . . . Exploration Rate (%) 54 | 4 74 58 4 62 93 84 Regions Visited 6 Branch Regions 3 Pre-discovered Areas 1 | . . . . . . 1 Known Exits Taken 3 | . 1 1 1 . . . Unknown Exits Taken 3 | 1 . . . 1 1 . Scrap Searched 9 | . . . . . . 9 Spaces Dug 3 | . . 2 . . . 1 Terrain Destroyed 24 | . . 13 . . 9 2 Melee 2 | . . 2 . . . . Projectile 2 | . . . . . . 2 AOE 20 | . . 11 . . 9 . Terrain Rammed . | . . . . . . . Walls Destroyed . | . . . . . . . Machines Disabled . | . . . . . . . Actions | -11 -10 -9 -8 -8 -8 -8 --------- Run | Yrd Mat Mat Mat Sto Rec Scr Total 5041 | 83 625 891 20 900 487 2035 Wait 257 | . 67 57 . 93 2 38 Move 4093 | 60 472 609 13 629 445 1865 Hop . | . . . . . . . Pick Up 125 | 13 18 31 1 31 7 24 Fast Attach 18 | 1 1 4 . 5 . 7 Attach 58 | 6 2 12 4 11 2 21 Detach 6 | . . 1 . . 1 4 Swap 81 | . 7 27 . 23 . 24 Drop 112 | . 7 28 2 38 10 27 Fire 258 | 3 48 115 . 56 16 20 Melee 12 | . . 3 . 5 . 4 Ram . | . . . . . . . Kick . | . . . . . . . Crush 18 | . 3 3 . 7 4 1 Escape Stasis 3 | . . 1 . 2 . . Rewire . | . . . . . . . Trap . | . . . . . . . Miscellaneous . | . . . . . . . Route ------- -11/Scrapyard -10/Materials (discovered 4 exits: *Mat / [*Min x2] / [*Sub]) -9/Materials (discovered 3 exits: *Mat x2 / Min) -8/Materials -8/Storage (discovered 2 exits: [*Fac] / *Rec) -8/Recycling (discovered 2 exits: [*Fac] / *Scr) -8/Scraptown (discovered 1 exit: [*Fac]) History --------- Turn | Location | Event 8 | -11/Scrapyard | Discovered new exit (range 15) 102 | -11/Scrapyard | Entered Materials 317 | -10/Materials | Build established: Mutant 426 | -10/Materials | Discovered new exit (range 14) 532 | -10/Materials | Repaired Lgt. Treads 775 | -10/Materials | Discovered new exit (range 3) 979 | -10/Materials | Discovered new exit (range 6) 991 | -10/Materials | Made a sacrifice at D.C.S.S. Altar Unit 992 | -10/Materials | Core integrity fell below 50% 1279 | -10/Materials | X0-1V1 mutated your Propulsion slot to Utility slot 1284 | -10/Materials | Melee accuracy permanently improved by X0-1V1 (+5%; -50 max core) 1352 | -10/Materials | X0-1V1 foreshadows a heat wave 1383 | -10/Materials | X0-1V1 announced a LAN party 1385 | -10/Materials | Core integrity restored by X0-1V1 (+44) 1404 | -10/Materials | Identified exit to Materials 1404 | -10/Materials | X0-1V1 revealed exit location to -9/Materials 1409 | -10/Materials | X0-1V1 added 0b10 threat records associated with you (considerable) 1433 | -10/Materials | X0-1V1 activates XOMVISION 1442 | -10/Materials | Core integrity permanently improved by X0-1V1 (+300) 1487 | -10/Materials | Utility slot count permanently improved by X0-1V1 (+1) 1507 | -10/Materials | X0-1V1 enhanced Transport squad support 1550 | -10/Materials | Entered another Materials area 1550 | -9/Materials | Evolved 2 slots: Propulsion x2 1581 | -9/Materials | X0-1V1 sent you into danger 1583 | -9/Materials | X0-1V1 whisked you away to safety 1586 | -9/Materials | X0-1V1 announced a LAN party 1626 | -9/Materials | X0-1V1 tapped a No Entrance sign 1631 | -9/Materials | X0-1V1 sent you to a vault 1647 | -9/Materials | X0-1V1 enhanced Transport squad support 1647 | -9/Materials | X0-1V1 vaporized surrounding terrain (radius 20) 1650 | -9/Materials | X0-1V1 added 0b10 threat records associated with you (considerable) 1657 | -9/Materials | Identified exit to Mines 1657 | -9/Materials | X0-1V1 revealed exit location to -9/Mines 1705 | -9/Materials | Weapon slot count temporarily expanded by X0-1V1 (+1) 1720 | -9/Materials | X0-1V1 downgraded hostiles (x1) 1950 | -9/Materials | Search patrols dispatched 1983 | -9/Materials | X0-1V1 added 0b10 threat records associated with you (minor) 2270 | -9/Materials | Build established: Scavenger-Tank 2353 | -9/Materials | Destroyed 8 combat bots 2414 | -9/Materials | Discovered new exit (range 7) 2515 | -9/Materials | X0-1V1 vaporized surrounding terrain (radius 15) 2661 | -9/Materials | Identified exit to Materials 2689 | -9/Materials | Build established: Scavenger-Mutant 2750 | -9/Materials | First assault squad dispatched 2819 | -9/Materials | Destroyed 8 combat bots 3280 | -9/Materials | Central database locked down 3483 | -9/Materials | X0-1V1 sent hostile S-10 Pest (x3) 3486 | -9/Materials | X0-1V1 sent allied H-61 Shepherd (x1) 3498 | -9/Materials | Sterilization system engaged 3498 | -9/Materials | Non-combat units ordered to evacuate 3521 | -9/Materials | Discovered exit to Materials (range 3) 3526 | -9/Materials | Entered another Materials area 3526 | -8/Materials | Accompanied by 1 ally 3526 | -8/Materials | Evolved 2 slots: Propulsion x1, Weapon x1 3528 | -8/Materials | Discovered new exit (range 8) 3547 | -8/Materials | Identified exit to Storage 3564 | -8/Materials | Entered Storage 3564 | -8/Storage | Accompanied by 1 ally 3971 | -8/Storage | Repaired Lgt. Treads 4496 | -8/Storage | Build established: Tank 4597 | -8/Storage | Assisted by bots powering up and referring to "LRC-V3" 4797 | -8/Storage | Used back door to open Recycling access 4797 | -8/Storage | Discovered new exit (range 5) 4890 | -8/Storage | Build established: Commander-Tank 5008 | -8/Storage | Discovered new exit (range 12) 5115 | -8/Storage | X0-1V1 activates XOMVISION 5440 | -8/Storage | Entered Recycling 5440 | -8/Recycling | Accompanied by 10 allies 6077 | -8/Recycling | System corruption reached 10% 6227 | -8/Recycling | Discovered new exit (range 5) 6398 | -8/Recycling | Scanned before Scraplab entrance 6488 | -8/Recycling | Entered Scraplab 6506 | -8/Recycling | Discovered new exit (range 2) 6512 | -8/Recycling | Entered Scraptown 6512 | -8/Scraptown | Accompanied by 8 allies 6512 | -8/Scraptown | System corruption cleaned by C-Scrubber 6724 | -8/Scraptown | System corruption cleaned by C-Scrubber 6795 | -8/Scraptown | Learned location of Extension (-5) 7462 | -8/Scraptown | Discovered new exit (range 9) 7597 | -8/Scraptown | Visited Bundlers 7763 | -8/Scraptown | Visited Cyclists 8120 | -8/Scraptown | Visited Shadow of the Wyrm 8201 | -8/Scraptown | Visited Spacefarers 8296 | -8/Scraptown | Visited SPCMW 8314 | -8/Scraptown | Visited TADAMA 8354 | -8/Scraptown | Visited UFD Registry 8354 | -8/Scraptown | Registered with UFD as "Autoblaster" 8418 | -8/Scraptown | Visited Junk Repository 9064 | -8/Scraptown | Build established: Commander-Gunner 9276 | -8/Scraptown | Visited Curators Association 9349 | -8/Scraptown | Visited Chapter 10 9384 | -8/Scraptown | Visited Research Penetration Think Tank 9455 | -8/Scraptown | Visited A0-MCA Data Center 9472 | -8/Scraptown | Given an A- rating by A0-MCA 9482 | -8/Scraptown | Found A0-MCA's Component Scanner 9537 | -8/Scraptown | Visited Junk Repository 9616 | -8/Scraptown | Visited Scrapoid Pod Storage 9661 | -8/Scraptown | Visited Cartography Club 9750 | -8/Scraptown | Build established: Commander-Tank 9823 | -8/Scraptown | Visited CR-KLE's Repair Center 9841 | -8/Scraptown | CR-KLE repaired 11 parts 9931 | -8/Scraptown | Entered Cyclist Reading Room 10419 | -8/Scraptown | Found Surveybot 17 Chip 10717 | -8/Scraptown | X0-1V1 brought Wyrm Statue to life 10717 | -8/Scraptown | Attacked by Scraptown defenders 10721 | -8/Scraptown | Attached CPS modules to Chaos Wyrm 10760 | -8/Scraptown | Allies destroyed Triborg 10772 | -8/Scraptown | Found Prototype Protection 10772 | -8/Scraptown | Identified Wyrmscale 10796 | -8/Scraptown | Lost 9 allies 10824 | -8/Scraptown | Core integrity fell below 50% 10850 | -8/Scraptown | Lost 11 parts (6n3u2w) 10880 | -8/Scraptown | X0-1V1 upgraded hostiles (x1) 10893 | -8/Scraptown | Core integrity fell below 20% 10910 | -8/Scraptown | Destroyed by ND-668(r) with Power Sword Last Messages --------------- Slug penetrates Machine. Penetrated by Slug. X0-1V1 uses you as a vessel of destruction. Siege Slug penetrates QP-P7A(r). QP-P7A(r) destroyed. Siege Slug penetrates Machine. Machine disabled. Penetrated by Slug. Slug penetrates Machine. Penetrated by Slug. Slug penetrates Earth. Penetrated by Slug. System corrupted: Heat flow error (+176). X0-1V1: "Fight!" Movement behavior is fully back under control. X0-1V1 briefly opens a portal to the matter dimension. Acquired 99 matter. ND-668(r) follow-up attacks with Power Sword. X0-1V1 chortles! Map ----- +----------------------------------------------------+ | ?????????####### | | ????????## = | | ????????# ! !!!*% | | ########## ==[=]== | | ############ ##" #! =#*!""### ### | | #??# # # =%=]]"#?# #?? | | #"" """### #??# # ] [ %!%!!#??# #?? | | #"" "#?# #??# # # ]!!%%*!=#??# #?? | | #"" "#?# #??#"""" """""### ]!=%== !#??# #?? | | #""! "#?# #??#""""" """""# != % * #??# #?? | | #" ! "#?# #??#""""" """""# # ]! #??# #?? | | #"! "#?# #??#""""" """""# ?# !][! #??# #?? | | #""""""#?# #???"""""""""""#??##[[![= ##??# #?? | | ########?# #???"""""""""""????# =*/|##???# #?? | | ?#####???# #???"""""""""""?????"]"#"#????# #?? | | ?#"""#???# #????#########???#########????# #?? | | ?#" "#???# #????????????????# "; ######### #?? | | ?# #???# #???????????????## ; """"""""" #?? | | ?# ##### #???????????????# ; """ """"" #?? | | ?# ##???????????#####%#" "" " "" #?? | | ?# #???????????# %E #?? | | ?# ##???###??#### #;###"" "" "" " #?? | | ?##### ### ##???"""""?#""" ##?#""""""""""" #?? | | ?????# #?###????"" ""?#""" "#??#""""""""""" #?? | | ###### ######???"" "?#""r "#??############ #?? | | #""""" """""#??#" ""##"@ "#?############# #?? | | #""" " " "#??#"" ""## " "#?#"""""""""""# #?? | | #" = ! "#??#"" ""#;" "#?#""*!! =! "# #?? | | #""""" """""#??#"" "";#" "#?#""[ ! ] "# #?? | | ###### ######??#" " ##""| "#?#"" "# #?? | | ###### #########"" ""##"" ""###""" """""""# #?? | | #?? | | #?? | | """"######"""" """""######""" """##""" """#####?? | | """#????#" "#????#"" |"##"" "#?????? | | ""#????#" "#????#" ""##"" "#?????? | | "#????#" ! ! "#????#" ""##" "#?????? | | " "#????#""""" ! "#????#" "#?????? | | """""#????#""""""""""#????#"""""""##"""""""#?????? | | ######????############????##################?????? | | | | | | | | | | | | | | | | | | | | | +----------------------------------------------------+ Best States ------------- Heat Dissipation 50 Energy Generation 18 Energy Capacity 1080 Matter Stores 824 Matter Capacity 900 Sight Range 22 Terrain Scan Density 10 Armor Coverage 600 Core Shielding 20 Weapon Cycling 15 Evasion (%) 50 Recoil Reduction 4 Item Schematics ----------------- None Robot Schematics ------------------ None Fabricated ------------ Nothing Repaired ---------- Lgt. Treads | 62% | -10/Materials Lgt. Treads | 17% | -8/Storage Studied --------- Hvy. Assault Rifle | -9/Materials | Hacked Alien Tech Used ----------------- None Achievements -------------- None Challenges ------------ None Game ------ Seed DeepMicrowarpCartridge Manual? 0 Play Time 01:16:40 Cumulative 463.6 hours Start 2026.06.29 @ 18:11:58 End 2026.06.29 @ 19:35:01 Sessions 1 Manual Loads 0 Difficulty Rogue Special Mode None Game No. 289 Rogue 289 Adventurer 0 Explorer 0 Win Type - Total 32 Types 16/1/7/2/1/1/1/1/0/2 Lore% 95 Gallery% 90 Achievement% 81 Wizard Run 0 Options --------- Layout 1 ASCII 0 Keyboard 0 Movement Numpad Keybinds 0 Fullscreen 1 Font 24/Proggy Map View 50x35 Zoom Use 0% Tactical HUD 0 Map Filters NONE Filters NONE Steam 1 RUN: 6a1c6b34-540b-4291-85ff-ef4b5cebf681